fUST/lending_fUST_20260407
["ID","MTS","AMOUNT","RATE_DAILY","PERIOD"]
[419942499,1775529047991,-151.0,0.00021918,2]
[419942501,1775529047999,-150.1182723,0.00021918,2]
[419942503,1775529048009,-151.0,0.00021918,2]
[419942505,1775529048018,-151.0,0.00021918,2]
[419942507,1775529048028,-151.0,0.00021918,2]
[419942509,1775529048037,-207.229803,0.00021918,2]
[419942511,1775529048046,-151.0,0.00021918,2]
[419942513,1775529048055,-159.678381,0.00021918,2]
[419942515,1775529048065,-647.830728,0.00021918,2]
[419942517,1775529048074,-647.830728,0.00021918,2]
[419942519,1775529048084,-647.830728,0.00021918,2]
[419942521,1775529048093,-647.830728,0.00021918,2]
[419942523,1775529048102,-151.0,0.00021918,2]
[419942525,1775529048113,-151.0,0.00021918,2]
[419942527,1775529048121,-151.0,0.00021918,2]
[419942529,1775529048131,-155.669649,0.00021918,2]
[419942531,1775529048139,-151.888728,0.00021918,2]
[419942532,1775529048148,-151.0,0.00021918,2]
[419942534,1775529048158,-151.0,0.00021918,2]
[419942536,1775529048167,-228.630807,0.00021918,2]
[419942538,1775529048176,-228.630807,0.00021918,2]
[419942540,1775529048185,-228.630807,0.00021918,2]
[419942542,1775529048195,-228.630807,0.00021918,2]
[419942544,1775529048203,-484.352662,0.00021918,2]
[419942546,1775529048212,-484.352662,0.00021918,2]
[419942548,1775529048221,-484.352662,0.00021918,2]
[419942550,1775529048230,-484.352662,0.00021918,2]
[419942552,1775529048239,-151.0,0.00021918,2]
[419942554,1775529048248,-151.0,0.00021918,2]
[419942556,1775529048257,-186.528278,0.00021918,2]
[419942558,1775529048266,-151.0,0.00021918,2]
[419942560,1775529048275,-186.528278,0.00021918,2]
[419942562,1775529048284,-487.709562,0.00021918,2]
[419942564,1775529048293,-186.528278,0.00021918,2]
[419942566,1775529048302,-487.709562,0.00021918,2]
[419942568,1775529048312,-186.528278,0.00021918,2]
[419942570,1775529048321,-151.0,0.00021918,2]
[419942572,1775529048331,-487.709562,0.00021918,2]
[419942574,1775529048340,-487.709555,0.00021918,2]
[419942576,1775529048349,-210.746366,0.00021918,2]
[419942578,1775529048358,-210.746366,0.00021918,2]
[419942580,1775529048367,-210.746366,0.00021918,2]
[419942582,1775529048377,-295.979013,0.00021918,2]
[419942584,1775529048386,-210.74636,0.00021918,2]
[419942586,1775529048395,-295.979013,0.00021918,2]
[419942588,1775529048404,-295.979013,0.00021918,2]
[419942590,1775529048413,-295.979008,0.00021918,2]
[419942592,1775529048422,-151.0,0.00021918,2]
[419942594,1775529048431,-151.0,0.00021918,2]
[419942596,1775529048440,-309.835594,0.00021918,2]
[419942598,1775529048450,-151.0,0.00021918,2]
[419942600,1775529048458,-309.835594,0.00021918,2]
[419942602,1775529048467,-309.835594,0.00021918,2]
[419942604,1775529048476,-309.835596,0.00021918,2]
[419942606,1775529048486,-151.0,0.00021918,2]
[419942632,1775529048722,-164.627177,0.00021918,2]
[419942634,1775529048733,-164.627177,0.00021918,2]
[419942636,1775529048742,-164.627177,0.00021918,2]
[419942638,1775529048751,-164.627185,0.00021918,2]
[419942640,1775529048761,-312.044266,0.00021918,2]
[419942642,1775529048770,-312.044266,0.00021918,2]
[419942644,1775529048779,-151.0,0.00021918,2]
[419942646,1775529048788,-312.044266,0.00021918,2]
[419942648,1775529048797,-312.044262,0.00021918,2]
[419942650,1775529048807,-151.0,0.00021918,2]
[419942652,1775529048816,-303.032243,0.00021918,2]
[419942654,1775529048824,-303.032243,0.00021918,2]
[419942656,1775529048833,-303.032243,0.00021918,2]
[419942658,1775529048842,-303.032248,0.00021918,2]
[419942660,1775529048851,-669.359865,0.00021918,2]
[419942662,1775529048860,-669.359865,0.00021918,2]
[419942664,1775529048869,-669.359865,0.00021918,2]
[419942666,1775529048878,-669.359866,0.00021918,2]
[419942668,1775529048887,-280.836695,0.00021918,2]
[419942670,1775529048897,-211.32546062,0.00021973,2]
[419942672,1775529048906,-504.95592037,0.00021973,2]
[419942673,1775529048915,-503.51441227,0.00021973,2]
[419942675,1775529048924,-500.0,0.00021973,2]
[419942677,1775529048933,-500.0,0.00021973,2]
[419942679,1775529048942,-150.30031006,0.00021973,2]
[419942681,1775529048952,-500.0,0.00021973,2]
[419942683,1775529048962,-500.0,0.00021973,2]
[419942685,1775529048970,-500.0,0.00021973,2]
[419942687,1775529048979,-151.0,0.00021973,2]
[419942689,1775529048989,-224.833892,0.00021973,2]
[419942691,1775529048998,-224.833892,0.00021973,2]
[419942693,1775529049007,-224.833892,0.00021973,2]
[419942695,1775529049016,-224.83389297,0.00021973,2]
[419942697,1775529049025,-152.562084,0.00021973,2]
[419942699,1775529049034,-151.0,0.00021973,2]
[419942701,1775529049044,-500.0,0.00021998,2]
[419942703,1775529049053,-500.0,0.00021999,2]
[419942705,1775529049062,-165950.4418212,0.00022,2]
[419944332,1775529364831,3000.0,0.00031,120]
[419944334,1775529641435,1000.0,0.00032876,120]
[419944335,1775529651548,1008.0144302,0.00032876,120]
[419944337,1775530232445,-2564.46903667,0.00013233,2]
[419944338,1775530232455,-882.29741492,0.00013333,2]
[419944339,1775530232468,-2655.70258508,0.00013333,2]
[419944340,1775530232477,-1000.0,0.00013699,2]
[419944341,1775530232487,-1200.0,0.0001613,2]
[419944342,1775530232498,-804.828006,0.00017235,2]
[419944343,1775530232507,-174.480252,0.00017418,2]
[419944344,1775530232517,-206.4567926,0.0001767,2]
[419944345,1775530232526,-300.0,0.00017722,2]
[419944346,1775530232535,-1680.0,0.00017722,2]
[419944347,1775530232544,-1000.0,0.00017725,2]
[419944348,1775530232553,-11757.9459221,0.00018335,2]
[419944349,1775530232563,-300.0,0.00018545,2]
[419944350,1775530232572,-420.0,0.00019342,2]
[419944351,1775530232582,-2351.0,0.0001947,2]
[419944352,1775530232591,-511.03154909,0.0001959,2]
[419944353,1775530232601,-1099.15046047,0.00020139,2]
[419944354,1775530232610,-166.78318206,0.00020239,2]
[419944355,1775530232619,-151.0,0.00020239,2]
[419944356,1775530232628,-153.85737033,0.00020239,2]
[419944357,1775530232638,-164.20894345,0.00020239,2]
[419944358,1775530232647,-467.33304922,0.00020239,2]
[419944359,1775530232656,-151.0,0.00020239,2]
[419944360,1775530232665,-151.0,0.00020239,2]
[419944361,1775530232675,-151.0,0.00020239,2]
[419944363,1775530232685,-151.0,0.00020239,2]
[419944365,1775530232694,-200.4065316,0.00020239,2]
[419944366,1775530232703,-1957.856,0.00020239,2]
[419944368,1775530232713,-151.0,0.00020239,2]
[419944370,1775530232722,-151.0,0.00020239,2]
[419944372,1775530232732,-151.0,0.00020239,2]
[419944373,1775530232742,-500.0,0.00020239,2]
[419944375,1775530232752,-441.01372068,0.00020239,2]
[419944395,1775530238596,-96.67077932,0.00020239,2]
[419944396,1775530238607,-151.0,0.00020239,2]
[419944397,1775530238616,-151.0,0.00020239,2]
[419944398,1775530238625,-151.0,0.00020239,2]
[419944399,1775530238634,-151.0,0.00020239,2]
[419944400,1775530238644,-151.0,0.00020239,2]
[419944401,1775530238653,-161.44474776,0.00020239,2]
[419944402,1775530238662,-157.22552241,0.00020239,2]
[419944403,1775530238671,-277.28337284,0.00020239,2]
[419944404,1775530238692,-1873.45462716,0.00020239,2]
[419944405,1775530238702,-537.6845,0.00020239,2]
[419944406,1775530238712,-473.80742885,0.00020294,2]
[419944407,1775530238722,-557.5788265,0.00020294,2]
[419944408,1775530238731,-578.20924308,0.00020349,2]
[419944409,1775530238741,-224.65534751,0.00020404,2]
[419944410,1775530238750,-500.0,0.00020621,2]
[419944411,1775530238760,-500.0,0.00020787,2]
[419944412,1775530238769,-483.77871207,0.00020787,2]
[419944413,1775530238778,-2230.315306,0.00020787,2]
[419944414,1775530238788,-156.0,0.0002089,2]
[419944415,1775530238797,-167.26630326,0.000209,2]
[419944416,1775530238806,-159.0,0.000209,2]
[419944418,1775530238815,-587.0,0.0002111,2]
[419944420,1775530238824,-1099.15046044,0.00021168,2]
[419944422,1775530238833,-500.0,0.00021335,2]
[419944424,1775530238844,-2312.83697232,0.00021335,2]
[419944426,1775530238854,-3292.0,0.00021391,2]
[419944428,1775530238863,-311.0,0.00021629,2]
[419944429,1775530238872,-500.0,0.00021707,2]
[419944430,1775530238881,-2640.02066346,0.00021718,2]
[419944431,1775530238891,-500.30329106,0.00021773,2]
[419944432,1775530238901,-501.8277175,0.00021773,2]
[419944433,1775530238910,-500.0,0.00021786,2]
[419944434,1775530238920,-500.0,0.00021786,2]
[419944435,1775530238929,-500.0,0.00021786,2]
[419944436,1775530238939,-500.0,0.00021786,2]
[419944437,1775530238950,-500.0,0.00021786,2]
[419944438,1775530238959,-275.52345939,0.00021786,2]
[419944439,1775530238968,-500.0,0.00021786,2]
[419944440,1775530238978,-7236.42095707,0.00021787,2]
[419944441,1775530238989,-13081.49742737,0.00021787,2]
[419944442,1775530239004,-191.11,0.00021777,10]
[419944443,1775530239013,-2743.66938344,0.00021787,2]
[419944444,1775530239025,-557.07,0.00021787,2]
[419944466,1775530246744,-916.64718786,0.00021787,2]
[419944467,1775530257389,2000.0,0.00032876,120]
[419944468,1775530266698,2000.0,0.00032876,120]
[419944469,1775530277647,2000.0,0.00032876,120]
[419944470,1775530294171,2000.0,0.00032876,120]
[419944471,1775530303204,2000.0,0.00032876,120]
[419944472,1775530310314,2000.0,0.00032876,120]
[419944473,1775530322940,18893.0,0.0003,120]
[419944475,1775530542468,1700.0,0.00032876,120]
[419944476,1775530550931,1700.0,0.00032876,120]
[419944477,1775530559479,1700.0,0.00032876,120]
[419944479,1775530567230,1700.0,0.00032876,120]
[419944480,1775530575041,1700.0,0.00032876,120]
[419944481,1775530581724,1700.0,0.00032876,120]
[419944482,1775530589154,1700.0,0.00032876,120]
[419944483,1775530600650,1700.0,0.00032876,120]
[419944484,1775530635777,1071.068492,0.00032876,120]
[419944485,1775530757111,73999.0,0.00032876,120]
[419944486,1775530862560,-164.518067,0.00010317,2]
[419944487,1775530862588,-164.518067,0.00011349,2]
[419944488,1775530877796,1700.0,0.00032876,120]
[419944489,1775530879298,-595.0,0.0001238,2]
[419944490,1775530879316,-164.518067,0.0001238,2]
[419944491,1775530879326,-164.518067,0.00013412,2]
[419944492,1775530879335,-265.963866,0.00013699,2]
[419944493,1775530879348,-80.963866,0.00013699,2]
[419944494,1775530881302,1700.0,0.00032876,120]
[419944495,1775531418476,5655.38607671,5e-05,2]
[419944520,1775531432737,-1000.0,0.00013699,2]
[419944521,1775531432748,-615.0,0.00013699,2]
[419944522,1775531432758,-164.518067,0.00014444,2]
[419944523,1775531432768,-49.08345561,0.00015476,2]
[419944524,1775531432790,-115.43461139,0.00015476,2]
[419944525,1775531432800,-164.518067,0.00016507,2]
[419944526,1775531432809,-164.518067,0.00017539,2]
[419944527,1775531432819,-164.518067,0.00018571,2]
[419944528,1775531432828,-330.35137933,0.00019,2]
[419944529,1775531432838,-633.3163859,0.00019124,2]
[419944530,1775531432848,-500.631436,0.00019167,2]
[419944532,1775531432857,-164.518067,0.00019602,2]
[419944534,1775531432866,-612.17587588,0.00019781,2]
[419944536,1775531432876,-461.27365525,0.00019781,2]
[419944538,1775531432885,-384.44987235,0.00019781,2]
[419944540,1775531432895,-1200.0,0.00019999,2]
[419944542,1775531432905,-68.71252958,0.0002,2]
[419944545,1775531432916,-586.94081868,0.0002,2]
[419944656,1775531447060,-13852.36403286,0.0002,2]
[419944657,1775531447071,-23000.0,0.0002,2]
[419944658,1775531447080,-300.0,0.00020225,2]
[419944659,1775531447089,-1957.856,0.00020226,2]
[419944660,1775531447098,-500.0,0.00020226,2]
[419944661,1775531447108,-537.6845,0.00020226,2]
[419944662,1775531447117,-2150.738,0.00020226,2]
[419944663,1775531447126,-2030.296672,0.00020281,2]
[419944664,1775531447135,-557.5788265,0.00020281,2]
[419944665,1775531447144,-525.11631237,0.000203,2]
[419944666,1775531447154,-500.0,0.000203,2]
[419944667,1775531447163,-2105.41764886,0.00020336,2]
[419944668,1775531447172,-578.20924308,0.00020336,2]
[419944669,1775531447182,-2183.31810187,0.00020391,2]
[419944670,1775531447191,-599.60298507,0.00020391,2]
[419944671,1775531447200,-438.72241835,0.00020446,2]
[419944672,1775531447210,-621.78829552,0.00020446,2]
[419944673,1775531447219,-1682.634186,0.000205,2]
[419944674,1775531447229,-644.79446246,0.00020501,2]
[419944675,1775531447238,-668.65185757,0.00020556,2]
[419944676,1775531447247,-500.0,0.000206,2]
[419944677,1775531447256,-1402.07236655,0.0002061,2]
[419944678,1775531447265,-693.3919763,0.00020611,2]
[419944679,1775531447275,-164.518067,0.00020634,2]
[419944680,1775531447283,-766.71682938,0.00020666,2]
[419944681,1775531447293,-888.98824732,0.00020745,2]
[419944682,1775531447303,-500.0,0.00020774,2]
[419944683,1775531447312,-2230.315306,0.00020774,2]
[419944684,1775531447321,-253.12382776,0.00020822,2]
[419944685,1775531447330,-339.2134915,0.00020845,2]
[419944686,1775531447340,-1000.0,0.00020848,2]
[419944687,1775531447349,-258.86138494,0.000209,2]
[419944688,1775531447358,-43314.01993213,0.00021,2]
[419944689,1775531447367,-1000.0,0.00021,2]
[419944690,1775531447376,-30547.47949907,0.000211,2]
[419944691,1775531447385,-500.0,0.000211,2]
[419944692,1775531447394,-1000.0,0.00021148,2]
[419944693,1775531447404,-112237.35544079,0.00021217,2]
[419944694,1775531447413,-42672.68378383,0.00021218,2]
[419944695,1775531447422,-3025.44326613,0.00021222,2]
[419944696,1775531447431,-500.0,0.00021273,2]
[419944697,1775531447440,-500.0,0.00021273,2]
[419944698,1775531447450,-500.0,0.00021273,2]
[419944699,1775531447460,-598.17,0.00021308,3]
[419944700,1775531447469,-644.12,0.00021318,2]
[419944701,1775531447479,-644.12,0.00021318,2]
[419944702,1775531447488,-644.12,0.00021318,2]
[419944703,1775531447498,-644.12,0.00021318,2]
[419944704,1775531447507,-644.12,0.00021318,2]
[419944705,1775531447517,-644.12,0.00021318,2]
[419944706,1775531447526,-644.12,0.00021318,2]
[419944707,1775531447535,-644.12,0.00021318,2]
[419944708,1775531447544,-644.12,0.00021318,2]
[419944709,1775531447553,-644.12,0.00021318,2]
[419944710,1775531447562,-921.88,0.00021318,2]
[419944711,1775531447572,-500.0,0.00021322,2]
[419944712,1775531447581,-2312.83697232,0.00021322,2]
[419944713,1775531447590,-500.0,0.00021373,2]
[419944714,1775531447600,-500.0,0.00021373,2]
[419944715,1775531447609,-500.0,0.00021373,2]
[419944716,1775531447618,-500.0,0.00021373,2]
[419944717,1775531447628,-327.41865872,0.00021373,2]
[419944718,1775531447638,-500.0,0.00021373,2]
[419944719,1775531447648,-500.0,0.00021373,2]
[419944720,1775531447658,-501.13381331,0.00021373,2]
[419944721,1775531447668,-500.0,0.00021373,2]
[419944722,1775531447677,-500.0,0.00021373,2]
[419944723,1775531447687,-507.53351123,0.00021373,2]
[419944724,1775531447696,-500.94795953,0.00021373,2]
[419944725,1775531447705,-500.0,0.00021373,2]
[419944726,1775531447714,-500.0,0.00021373,2]
[419944727,1775531447724,-500.0,0.00021373,2]
[419944728,1775531447733,-500.0,0.00021373,2]
[419944729,1775531447742,-500.0,0.00021373,2]
[419944730,1775531447751,-500.0,0.00021374,2]
[419944731,1775531447760,-1333.57331076,0.00021396,2]
[419944732,1775531447770,-738.0,0.00021414,2]
[419944733,1775531447779,-184.0,0.00021414,2]
[419944734,1775531447789,-450.8,0.00021414,2]
[419944735,1775531447798,-602.3036788,0.00021419,2]
[419944736,1775531447808,-74543.8477194,0.00021419,2]
[419944737,1775531447817,-290.0,0.00021463,2]
[419944738,1775531447826,-1049.59768908,0.000215,2]
[419944739,1775531447836,-12987.23551404,0.000215,2]
[419944740,1775531447845,-1000.0,0.000215,2]
[419944741,1775531447854,-500.0,0.00021648,2]
[419944742,1775531447864,-500.0,0.00021673,2]
[419944743,1775531447873,-266.94126691,0.00021673,2]
[419944744,1775531447883,-500.0,0.00021673,2]
[419944745,1775531447892,-500.0,0.00021673,2]
[419944746,1775531447901,-500.0,0.00021673,2]
[419944747,1775531447911,-151.0,0.00021687,2]
[419944748,1775531447920,-151.0,0.00021687,2]
[419944749,1775531447930,-151.0,0.00021687,2]
[419944750,1775531447939,-151.0,0.00021687,2]
[419944751,1775531447950,-888.98824731,0.00021691,2]
[419944752,1775531447959,-223.22419202,0.00021696,2]
[419944753,1775531447969,-500.0,0.00021773,2]
[419944754,1775531447979,-500.0,0.00021773,2]
[419944755,1775531447989,-500.0,0.00021773,2]
[419944756,1775531447999,-500.0,0.00021773,2]
[419944757,1775531448009,-500.0,0.00021773,2]
[419944758,1775531448018,-500.0,0.00021773,2]
[419944759,1775531448028,-500.0,0.00021773,2]
[419944760,1775531448037,-500.0,0.00021773,2]
[419944761,1775531448046,-500.0,0.00021773,2]
[419944762,1775531448057,-500.0,0.00021773,2]
[419944763,1775531448066,-500.0,0.00021773,2]
[419944764,1775531448075,-500.0,0.00021773,2]
[419944765,1775531448085,-556.07705808,0.00021773,2]
[419944766,1775531448096,-500.0,0.00021773,2]
[419944767,1775531448105,-500.0,0.00021773,2]
[419944768,1775531448115,-311.12146474,0.00021773,2]
[419944769,1775531448125,-500.0,0.00021773,2]
[419944770,1775531448134,-500.0,0.00021773,2]
[419944771,1775531448144,-500.0,0.00021773,2]
[419944772,1775531448153,-500.0,0.00021773,2]
[419944773,1775531448163,-500.0,0.00021773,2]
[419944774,1775531448172,-500.0,0.00021773,2]
[419944775,1775531448182,-500.0,0.00021773,2]
[419944776,1775531448191,-500.0,0.00021773,2]
[419944777,1775531448200,-500.0,0.00021773,2]
[419944778,1775531448210,-500.0,0.00021773,2]
[419944779,1775531448219,-500.0,0.00021773,2]
[419944780,1775531448229,-500.0,0.00021773,2]
[419944781,1775531448238,-500.0,0.00021773,2]
[419944782,1775531448248,-655913.16840293,0.0002178,2]
[419944783,1775531448257,-151.0,0.0002178,2]
[419944784,1775531448267,-151.0,0.0002178,2]
[419944785,1775531448276,-151.0,0.0002178,2]
[419944786,1775531448286,-151.0,0.0002178,2]
[419944787,1775531448295,-151.0,0.0002178,2]
[419944788,1775531448305,-151.0,0.00021783,2]
[419944789,1775531448314,-243.776547,0.00021783,2]
[419944790,1775531448323,-151.0,0.00021783,2]
[419944791,1775531448333,-151.0,0.00021783,2]
[419944792,1775531448343,-151.0,0.00021783,2]
[419944793,1775531448352,-202.52333469,0.00021787,2]
[419944794,1775531448361,-166.0,0.00021787,2]
[419944795,1775531448370,-947.0,0.00021787,2]
[419944796,1775531448379,-200.0,0.00021787,2]
[419944797,1775531448388,-947.0,0.00021787,2]
[419944798,1775531448398,-166.0,0.00021787,2]
[419944799,1775531448407,-947.0,0.00021787,2]
[419944800,1775531448416,-166.0,0.00021787,2]
[419944801,1775531448425,-340.0,0.00021787,2]
[419944802,1775531448434,-947.0,0.00021787,2]
[419944803,1775531448443,-647.0,0.00021787,2]
[419944804,1775531448453,-155.0,0.00021787,2]
[419944805,1775531448463,-205.37929279,0.00021787,2]
[419944806,1775531448472,-947.0,0.00021787,2]
[419944807,1775531448482,-340.0,0.00021787,2]
[419944808,1775531448491,-647.0,0.00021787,2]
[419944809,1775531448500,-155.0,0.00021787,2]
[419944810,1775531448509,-947.0,0.00021787,2]
[419944811,1775531448519,-340.0,0.00021787,2]
[419944812,1775531448528,-647.0,0.00021787,2]
[419944813,1775531448537,-155.0,0.00021787,2]
[419944814,1775531448546,-947.0,0.00021787,2]
[419944816,1775531448555,-340.0,0.00021787,2]
[419944817,1775531448564,-647.0,0.00021787,2]
[419944818,1775531448573,-155.0,0.00021787,2]
[419944819,1775531448583,-947.0,0.00021787,2]
[419944820,1775531448592,-340.0,0.00021787,2]
[419944821,1775531448602,-647.0,0.00021787,2]
[419944822,1775531448611,-153.54905084,0.00021787,2]
[419944823,1775531448620,-947.0,0.00021787,2]
[419944824,1775531448630,-340.0,0.00021787,2]
[419944825,1775531448639,-155.0,0.00021787,2]
[419944826,1775531448649,-647.0,0.00021787,2]
[419944827,1775531448658,-947.0,0.00021787,2]
[419944828,1775531448667,-340.0,0.00021787,2]
[419944829,1775531448677,-647.0,0.00021787,2]
[419944830,1775531448686,-947.0,0.00021787,2]
[419944831,1775531448696,-340.0,0.00021787,2]
[419944832,1775531448706,-647.0,0.00021787,2]
[419944833,1775531448715,-947.0,0.00021787,2]
[419944834,1775531448724,-340.0,0.00021787,2]
[419944835,1775531448734,-647.0,0.00021787,2]
[419944836,1775531448744,-947.0,0.00021787,2]
[419944837,1775531448754,-647.0,0.00021787,2]
[419944838,1775531448762,-947.0,0.00021787,2]
[419944839,1775531448772,-647.0,0.00021787,2]
[419944840,1775531448781,-340.0,0.00021787,2]
[419944841,1775531448797,-947.0,0.00021787,2]
[419944842,1775531448812,-647.0,0.00021787,2]
[419944843,1775531448821,-340.0,0.00021787,2]
[419944844,1775531448831,-947.0,0.00021787,2]
[419944845,1775531448841,-647.0,0.00021787,2]
[419944846,1775531448851,-340.0,0.00021787,2]
[419944847,1775531448861,-947.0,0.00021787,2]
[419944848,1775531448870,-647.0,0.00021787,2]
[419944849,1775531448880,-947.0,0.00021787,2]
[419944850,1775531448890,-340.0,0.00021787,2]
[419944851,1775531448901,-647.0,0.00021787,2]
[419944852,1775531448911,-947.0,0.00021787,2]
[419944853,1775531448921,-340.0,0.00021787,2]
[419944854,1775531448932,-647.0,0.00021787,2]
[419944855,1775531448942,-947.0,0.00021787,2]
[419944856,1775531448953,-340.0,0.00021787,2]
[419944857,1775531448963,-340.0,0.00021787,2]
[419944858,1775531448972,-947.0,0.00021787,2]
[419944859,1775531448982,-340.0,0.00021787,2]
[419944860,1775531448992,-947.0,0.00021787,2]
[419944861,1775531449002,-340.0,0.00021787,2]
[419944862,1775531449012,-947.0,0.00021787,2]
[419944863,1775531449022,-340.0,0.00021787,2]
[419944864,1775531449031,-350.45924367,0.00021787,2]
[419944865,1775531449042,-340.0,0.00021787,2]
[419944866,1775531449051,-340.0,0.00021787,2]
[419944867,1775531449061,-340.0,0.00021787,2]
[419944868,1775531449071,-647.0,0.00021787,2]
[419944869,1775531449081,-647.0,0.00021787,2]
[419944870,1775531449091,-340.0,0.00021787,2]
[419944871,1775531449100,-340.0,0.00021787,2]
[419944872,1775531449110,-647.0,0.00021787,2]
[419944873,1775531449119,-340.0,0.00021787,2]
[419944874,1775531449129,-647.0,0.00021787,2]
[419944875,1775531449140,-340.0,0.00021787,2]
[419944876,1775531449150,-647.0,0.00021787,2]
[419944877,1775531449160,-340.0,0.00021787,2]
[419944878,1775531449170,-647.0,0.00021787,2]
[419944879,1775531449180,-647.0,0.00021787,2]
[419944880,1775531449190,-340.0,0.00021787,2]
[419944881,1775531449201,-340.0,0.00021787,2]
[419944882,1775531449211,-647.0,0.00021787,2]
[419944883,1775531449220,-340.0,0.00021787,2]
[419944884,1775531449230,-647.0,0.00021787,2]
[419944885,1775531449240,-647.0,0.00021787,2]
[419944886,1775531449251,-340.0,0.00021787,2]
[419944887,1775531449261,-647.0,0.00021787,2]
[419944888,1775531449270,-340.0,0.00021787,2]
[419944889,1775531449280,-439.50052244,0.00021787,2]
[419944890,1775531449289,-340.0,0.00021787,2]
[419944891,1775531449300,-340.0,0.00021787,2]
[419944892,1775531449311,-340.0,0.00021787,2]
[419944893,1775531449322,-340.0,0.00021787,2]
[419944894,1775531449333,-340.0,0.00021787,2]
[419944895,1775531449344,-340.0,0.00021787,2]
[419944896,1775531449353,-340.0,0.00021787,2]
[419944897,1775531449363,-340.0,0.00021787,2]
[419944898,1775531449372,-340.0,0.00021787,2]
[419944899,1775531449383,-340.0,0.00021787,2]
[419944900,1775531449393,-340.0,0.00021787,2]
[419944901,1775531449403,-340.0,0.00021787,2]
[419944902,1775531449413,-340.0,0.00021787,2]
[419944903,1775531449423,-340.0,0.00021787,2]
[419944904,1775531449433,-340.0,0.00021787,2]
[419944905,1775531449444,-340.0,0.00021787,2]
[419944906,1775531449456,-340.0,0.00021787,2]
[419944907,1775531449465,-340.0,0.00021787,2]
[419944908,1775531449475,-340.0,0.00021787,2]
[419944909,1775531449485,-340.0,0.00021787,2]
[419944910,1775531449495,-340.0,0.00021787,2]
[419944911,1775531449506,-340.0,0.00021787,2]
[419944912,1775531449517,-340.0,0.00021787,2]
[419944913,1775531449527,-340.0,0.00021787,2]
[419944914,1775531449538,-340.0,0.00021787,2]
[419944915,1775531449549,-340.0,0.00021787,2]
[419944916,1775531449560,-340.0,0.00021787,2]
[419944917,1775531449570,-340.0,0.00021787,2]
[419944918,1775531449580,-340.0,0.00021787,2]
[419944919,1775531449590,-340.0,0.00021787,2]
[419944920,1775531449600,-340.0,0.00021787,2]
[419944921,1775531449611,-340.0,0.00021787,2]
[419944922,1775531449620,-340.0,0.00021787,2]
[419944923,1775531449631,-340.0,0.00021787,2]
[419944924,1775531449641,-340.0,0.00021787,2]
[419944925,1775531449651,-340.0,0.00021787,2]
[419944926,1775531449661,-340.0,0.00021787,2]
[419944927,1775531449672,-340.0,0.00021787,2]
[419944928,1775531449681,-340.0,0.00021787,2]
[419944929,1775531449691,-340.0,0.00021787,2]
[419944930,1775531449701,-340.0,0.00021787,2]
[419944931,1775531449711,-349.2802317,0.00021787,2]
[419944932,1775531449720,-179.0,0.00021787,2]
[419944933,1775531449729,-179.0,0.00021787,2]
[419944934,1775531449739,-179.75851767,0.00021787,2]
[419944935,1775531449748,-300.5293377,0.00021787,2]
[419944936,1775531449758,-155.0,0.00021787,2]
[419944937,1775531449768,-155.0,0.00021787,2]